bitfinex/quotes_BTCUSD_20241103
["timestamp","ask_amount","ask_price","bid_price","bid_amount"]
[1730670000469,0.003642,69223.0,69222.0,0.04439109]
[1730670000711,0.003642,69223.0,69222.0,0.03939109]
[1730670000965,0.003642,69223.0,69222.0,0.17400242]
[1730670001251,0.003642,69223.0,69222.0,0.31401842]
[1730670001486,0.003642,69223.0,69222.0,0.47118213]
[1730670001946,0.003642,69223.0,69222.0,0.51415952]
[1730670002438,0.003642,69223.0,69222.0,0.61415952]
[1730670002694,0.003642,69223.0,69222.0,0.57118213]
[1730670002926,0.003642,69223.0,69222.0,0.72983155]
[1730670003157,0.003642,69223.0,69222.0,0.98461207]
[1730670003428,0.003642,69223.0,69222.0,0.75283155]
[1730670004569,0.003642,69223.0,69222.0,0.88033155]
[1730670005775,0.003642,69223.0,69222.0,0.88033235]
[1730670006012,0.003642,69223.0,69222.0,0.8841042]
[1730670006243,0.003642,69223.0,69222.0,0.58762621]
[1730670006468,0.003642,69223.0,69222.0,0.69502551]
[1730670006707,0.003642,69223.0,69222.0,0.7385769]
[1730670006996,0.003642,69223.0,69222.0,0.84600351]
[1730670007220,0.003642,69223.0,69222.0,0.7615769]
[1730670007698,0.003642,69223.0,69222.0,1.03210264]
[1730670007928,0.003642,69223.0,69222.0,1.16101458]
[1730670008860,0.003642,69223.0,69222.0,1.03210264]
[1730670009324,0.21652989,69238.0,69222.0,1.18325715]
[1730670009588,0.21652989,69238.0,69237.0,0.392966]
[1730670010057,0.001642,69253.0,69245.0,0.134973]
[1730670010522,0.001642,69253.0,69247.0,0.005]
[1730670010988,0.001642,69253.0,69248.0,0.01107019]
[1730670012690,0.001642,69253.0,69248.0,0.01207019]
[1730670013850,0.001642,69253.0,69248.0,0.01407019]
[1730670014085,0.001642,69253.0,69248.0,0.003]
[1730670014568,0.001642,69253.0,69249.0,0.01106709]
[1730670015020,0.04377984,69253.0,69249.0,0.01106709]
[1730670015247,0.001642,69253.0,69249.0,0.01106709]
[1730670016153,0.001642,69253.0,69237.0,0.005]
[1730670016154,0.129967,69249.0,69237.0,0.005]
[1730670016380,0.0485,69248.0,69242.0,0.21652989]
[1730670016617,0.178468,69248.0,69237.0,0.005]
[1730670016843,0.178468,69248.0,69237.0,0.105]
[1730670017376,0.15969981,69252.0,69251.0,0.134962]
[1730670017604,0.001642,69253.0,69252.0,0.13496]
[1730670017853,0.001642,69253.0,69252.0,0.28075704]
[1730670018089,0.001642,69253.0,69249.0,0.008]
[1730670018356,0.12996,69252.0,69249.0,0.003]
[1730670018621,0.0618244,69251.0,69249.0,0.003]
[1730670018828,0.1917874,69251.0,69249.0,0.003]
[1730670019055,0.211063,69250.0,69249.0,0.003]
[1730670019297,0.211063,69250.0,69241.0,0.005]
[1730670019298,0.0811,69250.0,69241.0,0.005]
[1730670019520,0.12171204,69250.0,69241.0,0.005]
[1730670019743,0.001,69248.0,69241.0,0.005]
[1730670020253,0.12171204,69250.0,69241.0,0.005]
[1730670020504,0.12771204,69250.0,69241.0,0.005]
[1730670020764,0.129971,69247.0,69239.0,0.00617781]
[1730670021012,0.129971,69246.0,69238.0,0.00617781]
[1730670021251,0.259935,69248.0,69238.0,0.00617781]
[1730670021252,0.129974,69245.0,69241.0,0.001]
[1730670021698,0.129975,69244.0,69241.0,0.001]
[1730670022172,0.129973,69245.0,69241.0,0.001]
[1730670022417,0.259939,69247.0,69230.0,0.30296981]
[1730670022418,0.0682225,69244.0,69236.0,0.00617781]
[1730670022683,0.21652989,69246.0,69239.0,0.003]
[1730670022684,0.129982,69240.0,69239.0,0.003]
[1730670023152,0.129982,69240.0,69231.0,0.21652989]
[1730670023153,0.129997,69232.0,69231.0,0.21652989]
[1730670023377,0.130009,69226.0,69224.0,0.00617781]
[1730670023598,0.130009,69226.0,69222.0,0.00082]
[1730670023599,0.1215,69232.0,69223.0,0.00617781]
[1730670023856,0.130014,69223.0,69222.0,0.00082]
[1730670025255,0.131014,69223.0,69222.0,0.00082]
[1730670026674,0.131014,69223.0,69222.0,0.00382]
[1730670027158,0.130014,69223.0,69222.0,0.00082]
[1730670027398,0.130014,69223.0,69222.0,0.00682]
[1730670027635,0.130014,69223.0,69222.0,0.00582]
[1730670028081,0.132014,69223.0,69222.0,0.00582]
[1730670028553,0.130014,69223.0,69222.0,0.00582]
[1730670028773,0.130014,69223.0,69222.0,0.00482]
[1730670029002,0.130014,69223.0,69222.0,0.00982]
[1730670029925,0.130013,69224.0,69222.0,0.00982]
[1730670030174,0.15782283,69226.0,69222.0,0.00982]
[1730670030901,0.15782283,69226.0,69223.0,0.00931067]
[1730670032058,0.15782283,69226.0,69223.0,0.00630583]
[1730670032951,0.15782283,69226.0,69223.0,0.00930583]
[1730670033601,0.15782283,69226.0,69223.0,0.01030583]
[1730670034026,0.15782283,69226.0,69223.0,0.14031883]
[1730670034896,0.15782283,69226.0,69223.0,0.01030583]
[1730670039075,0.21260571,69226.0,69223.0,0.01030583]
[1730670039302,0.21260571,69226.0,69223.0,0.004]
[1730670039994,0.15782283,69226.0,69223.0,0.004]
[1730670040880,0.130012,69224.0,69223.0,0.004]
[1730670041991,0.130012,69224.0,69223.0,0.001]
[1730670042223,0.130012,69224.0,69223.0,0.006]
[1730670042913,0.130012,69224.0,69223.0,0.005]
[1730670043134,0.24908458,69224.0,69223.0,0.008]
[1730670046334,0.130012,69224.0,69223.0,0.008]
[1730670050842,0.13001,69225.0,69223.0,0.008]
[1730670051062,0.15946483,69226.0,69223.0,0.008]
[1730670051063,0.28947383,69226.0,69223.0,0.008]
[1730670051727,0.28947383,69226.0,69223.0,0.003]
[1730670051954,0.28947383,69226.0,69223.0,0.007]
[1730670052168,0.130011,69225.0,69223.0,0.004]
[1730670052377,0.130011,69225.0,69224.0,0.00618615]
[1730670053235,0.15946483,69226.0,69224.0,0.00618615]
[1730670053473,0.15946483,69226.0,69223.0,0.004]
[1730670053474,0.15946483,69226.0,69225.0,0.00618615]
[1730670053690,0.001642,69226.0,69225.0,0.00618615]
[1730670053918,0.001642,69226.0,69225.0,0.01572099]
[1730670054570,0.001642,69226.0,69225.0,0.29152803]
[1730670054816,0.001642,69226.0,69225.0,0.4206392]
[1730670055476,0.001642,69226.0,69225.0,0.4236392]
[1730670055689,0.001642,69226.0,69225.0,0.4246392]
[1730670055903,0.001642,69226.0,69225.0,0.4206392]
[1730670056160,0.004642,69226.0,69225.0,0.4206392]
[1730670056370,0.009642,69226.0,69225.0,0.4206392]
[1730670058010,0.009642,69226.0,69225.0,0.55688309]
[1730670058239,0.009642,69226.0,69225.0,0.4206392]
[1730670060316,0.009642,69226.0,69225.0,0.5206392]
[1730670060538,0.009642,69226.0,69225.0,0.5436392]
[1730670063440,0.006642,69226.0,69225.0,0.5436392]
[1730670064086,0.006642,69226.0,69225.0,0.5456392]
[1730670064566,0.006642,69226.0,69225.0,0.5496392]
[1730670064995,0.001642,69226.0,69225.0,0.55836234]
[1730670065206,0.001642,69226.0,69225.0,0.5496392]
[1730670065426,0.001642,69226.0,69225.0,0.1706292]
[1730670065657,0.001642,69226.0,69225.0,0.1756292]
[1730670065877,0.001642,69226.0,69225.0,0.16944305]
[1730670066096,0.001642,69226.0,69225.0,0.31352794]
[1730670066333,0.001642,69226.0,69225.0,0.3106392]
[1730670066763,0.001642,69226.0,69225.0,0.4106392]
[1730670068050,0.001642,69226.0,69225.0,0.52424715]
[1730670068528,0.001642,69226.0,69225.0,0.5320392]
[1730670068782,0.001642,69226.0,69225.0,0.59799493]
[1730670069029,0.001642,69226.0,69225.0,0.79947846]
[1730670069255,0.001642,69226.0,69225.0,0.715567]
[1730670069483,0.21652989,69239.0,69238.0,0.512364]
[1730670069699,0.21652989,69239.0,69238.0,0.66434719]
[1730670069919,0.21652989,69239.0,69238.0,0.81676947]
[1730670070166,0.21652989,69246.0,69241.0,0.13998]
[1730670070388,0.21652989,69246.0,69241.0,0.38577704]
[1730670070616,0.21652989,69246.0,69241.0,0.39855612]
[1730670072217,0.21817189,69253.0,69241.0,0.39855612]
[1730670072678,0.21817189,69253.0,69241.0,0.40955612]
[1730670072908,0.21817189,69253.0,69241.0,0.40455612]
[1730670073132,0.21817189,69253.0,69241.0,0.39855612]
[1730670073376,0.16480802,69242.0,69241.0,0.39855612]
[1730670073610,0.003,69242.0,69241.0,0.39955612]
[1730670073852,0.003,69242.0,69241.0,0.39855612]
[1730670074321,0.003,69242.0,69241.0,0.40355612]
[1730670074781,0.003,69242.0,69241.0,0.40755612]
[1730670075017,0.21817189,69253.0,69248.0,0.129967]
[1730670075290,0.21817189,69253.0,69248.0,0.27576404]
[1730670075506,0.21817189,69253.0,69249.0,0.13654729]
[1730670075732,0.001642,69253.0,69250.0,0.129963]
[1730670075964,0.001642,69253.0,69251.0,0.00288774]
[1730670076182,0.001642,69253.0,69251.0,0.00946862]
[1730670076656,0.004642,69253.0,69251.0,0.00946862]
[1730670076885,0.007642,69253.0,69251.0,0.00946862]
[1730670077097,0.007642,69253.0,69251.0,0.00658088]
[1730670077328,0.004642,69253.0,69251.0,0.00658088]
[1730670077561,0.007642,69253.0,69251.0,0.00658088]
[1730670077810,0.007642,69253.0,69252.0,0.13496]
[1730670078007,0.004642,69253.0,69252.0,0.13784775]
[1730670078230,0.007642,69253.0,69252.0,0.01446743]
[1730670078915,0.004642,69253.0,69252.0,0.01446743]
[1730670079342,0.007642,69253.0,69252.0,0.01546743]
[1730670079567,0.007642,69253.0,69252.0,0.14542743]
[1730670080213,0.007642,69253.0,69252.0,0.01046743]
[1730670081354,0.007642,69253.0,69252.0,0.01546743]
[1730670081851,0.007642,69253.0,69252.0,0.14542743]
[1730670083059,0.007642,69253.0,69252.0,0.01546743]
[1730670083277,0.007642,69253.0,69252.0,0.14542743]
[1730670083949,0.007642,69253.0,69252.0,0.01546743]
[1730670084384,0.007642,69253.0,69252.0,0.14542743]
[1730670086281,0.007642,69253.0,69252.0,0.29622447]
[1730670086505,0.007642,69253.0,69252.0,0.43931472]
[1730670086761,0.007642,69253.0,69252.0,0.44431472]
[1730670087176,0.004642,69253.0,69252.0,0.44331472]
[1730670087599,0.004642,69253.0,69252.0,0.52191472]
[1730670087804,0.001642,69253.0,69252.0,0.52191472]
[1730670088020,0.001642,69253.0,69252.0,0.63159838]
[1730670088237,0.001642,69253.0,69252.0,0.63875823]
[1730670088668,0.001642,69253.0,69252.0,0.63675823]
[1730670089102,0.001642,69253.0,69252.0,0.76875802]
[1730670092526,0.001642,69253.0,69252.0,0.76875496]
[1730670095348,0.001642,69253.0,69252.0,0.6590713]
[1730670095990,0.001642,69253.0,69252.0,0.65907341]
[1730670097097,0.001642,69253.0,69252.0,0.65291472]
[1730670099723,0.001642,69253.0,69252.0,0.65491472]
[1730670099941,0.001642,69253.0,69252.0,0.66107554]
[1730670100788,0.001642,69253.0,69252.0,0.65907554]
[1730670102567,0.001642,69253.0,69252.0,0.66107554]
[1730670102768,0.001642,69253.0,69252.0,0.65907554]
[1730670103447,0.001642,69253.0,69252.0,0.50429952]
[1730670103680,0.001642,69253.0,69252.0,0.17253754]
[1730670103905,0.001642,69253.0,69252.0,0.30133672]
[1730670104583,0.001642,69253.0,69252.0,0.3981387]
[1730670104801,0.001642,69253.0,69252.0,0.3631787]
[1730670105051,0.001642,69253.0,69252.0,0.16137672]
[1730670105303,0.001642,69253.0,69252.0,0.01557968]
[1730670106363,0.001642,69253.0,69252.0,0.01057968]
[1730670106834,0.001642,69253.0,69252.0,0.00657968]
[1730670111811,0.001642,69253.0,69252.0,0.15737672]
[1730670112040,0.001642,69253.0,69252.0,0.29349754]
[1730670113535,0.001642,69253.0,69252.0,0.37009754]
[1730670113787,0.001642,69253.0,69252.0,0.38209754]
[1730670114109,0.001642,69253.0,69252.0,0.37010273]
[1730670114317,0.001642,69253.0,69252.0,0.37510273]
[1730670114554,0.001642,69253.0,69252.0,0.37010273]
[1730670115005,0.001642,69253.0,69252.0,0.37610273]
[1730670115466,0.001642,69253.0,69252.0,0.30550273]
[1730670115677,0.001642,69253.0,69252.0,0.30050273]
[1730670115876,0.001642,69253.0,69252.0,0.29450273]
[1730670116098,0.001642,69253.0,69252.0,0.30050273]
[1730670116512,0.001642,69253.0,69252.0,0.30950273]
[1730670116722,0.001642,69253.0,69252.0,0.29350273]
[1730670117139,0.001642,69253.0,69252.0,0.29850273]
[1730670117988,0.001642,69253.0,69252.0,0.40450502]
[1730670118398,0.001642,69253.0,69252.0,0.40950502]
[1730670118603,0.001642,69253.0,69252.0,0.40450502]
[1730670119655,0.001642,69253.0,69252.0,0.40950502]
[1730670119862,0.001642,69253.0,69252.0,0.39850502]
[1730670120268,0.001642,69253.0,69252.0,0.41350502]
[1730670120505,0.001642,69253.0,69252.0,0.40650502]
[1730670120730,0.001642,69253.0,69252.0,0.41350502]
[1730670121183,0.001642,69253.0,69252.0,0.537524]
[1730670121634,0.001642,69253.0,69252.0,0.529524]
[1730670122044,0.001642,69253.0,69252.0,0.537524]
[1730670122246,0.001642,69253.0,69252.0,0.560524]
[1730670122958,0.001642,69253.0,69252.0,0.562524]
[1730670123165,0.001642,69253.0,69252.0,0.560524]
[1730670123581,0.001642,69253.0,69252.0,0.43650502]
[1730670124874,0.001642,69253.0,69252.0,0.43091427]
[1730670125087,0.001642,69253.0,69252.0,0.43605583]
[1730670125319,0.001642,69253.0,69252.0,0.43763343]
[1730670125553,0.001642,69253.0,69252.0,0.42263343]
[1730670125784,0.001642,69253.0,69252.0,0.43363343]
[1730670126006,0.001642,69253.0,69252.0,0.44263343]
[1730670126219,0.001642,69253.0,69252.0,0.43163343]
[1730670126658,0.001642,69253.0,69252.0,0.44163343]
[1730670127136,0.001642,69253.0,69252.0,0.41363343]
[1730670128294,0.001642,69253.0,69252.0,0.41863343]
[1730670129396,0.001642,69253.0,69252.0,0.46150668]
[1730670130288,0.001642,69253.0,69252.0,0.41863343]
[1730670130768,0.001642,69253.0,69252.0,0.41363343]
[1730670131180,0.001642,69253.0,69252.0,0.41863343]
[1730670131455,0.001642,69254.0,69253.0,0.133]
[1730670131669,0.06485428,69279.0,69253.0,0.133]
[1730670131670,0.21652989,69267.0,69266.0,0.239933]
[1730670131885,0.177151,69280.0,69270.0,0.005]
[1730670132103,0.177151,69280.0,69274.0,0.09682162]
[1730670132532,0.047244,69280.0,69274.0,0.10448522]
[1730670132757,0.26377389,69280.0,69279.0,0.09682162]
[1730670133192,0.26377389,69280.0,69279.0,0.1044772]
[1730670133193,0.047244,69280.0,69279.0,0.1044772]
[1730670133687,0.001644,69280.0,69279.0,0.25027424]
[1730670133902,0.001644,69280.0,69279.0,0.69079115]
[1730670134122,0.001644,69280.0,69279.0,0.69407316]
[1730670134826,0.001644,69280.0,69279.0,0.75836757]
[1730670135262,0.001644,69280.0,69279.0,0.7368507]
[1730670135461,0.001644,69280.0,69279.0,0.70207316]
[1730670135675,0.001644,69280.0,69279.0,0.8478989]
[1730670136343,0.001644,69280.0,69279.0,0.8578989]
[1730670137070,0.001644,69280.0,69279.0,0.8498989]
[1730670137304,0.001644,69280.0,69279.0,0.71507316]
[1730670137538,0.001644,69280.0,69279.0,0.67205534]
[1730670137755,0.005412,69286.0,69285.0,0.164898]
[1730670137969,0.005412,69286.0,69285.0,0.56420633]
[1730670138179,0.005412,69286.0,69285.0,0.71994304]
[1730670139043,0.005412,69286.0,69285.0,0.73194304]
[1730670139279,0.005412,69286.0,69285.0,0.74294304]
[1730670139485,0.005412,69286.0,69285.0,0.78722891]
[1730670141028,0.005412,69286.0,69285.0,0.78522891]
[1730670141255,0.005412,69286.0,69285.0,0.5951173]
[1730670142700,0.005412,69286.0,69285.0,0.60011116]
[1730670143871,0.005412,69286.0,69285.0,0.64439703]
[1730670144403,0.21652989,69304.0,69295.0,0.64582984]
[1730670144648,0.21652989,69304.0,69298.0,0.162873]
[1730670144961,0.21652989,69304.0,69299.0,0.264872]
[1730670145183,0.00168671,69312.0,69304.0,0.035]
[1730670145459,0.00168671,69312.0,69304.0,0.41065904]
[1730670145685,0.00168671,69312.0,69311.0,0.141849]
[1730670145686,0.001642,69312.0,69311.0,0.141849]
[1730670145897,0.001642,69312.0,69311.0,0.63028314]
[1730670146113,0.001642,69312.0,69311.0,0.68924149]
[1730670146785,0.001642,69312.0,69311.0,0.68724149]
[1730670147010,0.001642,69312.0,69311.0,0.68924149]
[1730670147227,0.001642,69312.0,69311.0,0.73754149]
[1730670147460,0.001642,69312.0,69311.0,0.75154149]
[1730670147944,0.001642,69312.0,69311.0,0.73754149]
[1730670148193,0.001642,69312.0,69311.0,0.76454149]
[1730670148410,0.001642,69312.0,69311.0,0.76452661]
[1730670148615,0.001642,69312.0,69311.0,0.75152661]
[1730670148841,0.001642,69312.0,69311.0,0.76552661]
[1730670149054,0.001642,69312.0,69311.0,0.79797721]
[1730670149277,0.001642,69312.0,69311.0,0.78397721]
[1730670149488,0.001642,69312.0,69311.0,0.79597721]
[1730670149706,0.001642,69312.0,69311.0,0.79797721]
[1730670149925,0.001642,69312.0,69311.0,0.64294074]
[1730670150137,0.001642,69312.0,69311.0,0.57070851]
[1730670150354,0.2165746,69336.0,69311.0,0.57070851]
[1730670150355,0.0111013,69355.0,69311.0,0.58670851]
[1730670150573,0.10732307,69377.0,69311.0,0.58670851]
[1730670150574,0.129797,69339.0,69338.0,0.005]
[1730670151448,0.23230903,69339.0,69338.0,0.005]
[1730670151679,0.129797,69339.0,69338.0,0.005]
[1730670152164,0.129797,69339.0,69338.0,0.012]
[1730670153779,0.129797,69339.0,69338.0,0.01]
[1730670154914,0.129797,69339.0,69338.0,0.005]
[1730670155144,0.1298,69337.0,69336.0,0.005]
[1730670155353,0.129808,69333.0,69332.0,0.005]
[1730670155568,0.129808,69333.0,69332.0,0.007]
[1730670158047,0.133808,69333.0,69332.0,0.007]
[1730670159682,0.22917433,69333.0,69332.0,0.007]
[1730670160103,0.2737799,69333.0,69332.0,0.005]
[1730670160740,0.22917433,69333.0,69332.0,0.005]
[1730670161876,0.09936633,69333.0,69332.0,0.005]
[1730670162760,0.09936633,69333.0,69332.0,0.02331502]
[1730670163463,0.09536633,69333.0,69332.0,0.02331502]
[1730670163692,0.09836633,69333.0,69332.0,0.02331502]
[1730670163928,0.10236633,69333.0,69332.0,0.02331502]
[1730670164136,0.09936633,69333.0,69332.0,0.02331502]
[1730670164352,0.09936633,69333.0,69332.0,0.02631502]
[1730670164596,0.09936633,69333.0,69332.0,0.02831502]
[1730670167528,0.004,69333.0,69332.0,0.02831502]
[1730670169532,0.004,69333.0,69332.0,0.02995302]
[1730670172005,0.004,69333.0,69332.0,0.02795302]
[1730670172240,0.004,69333.0,69332.0,0.02995302]
[1730670172475,0.004,69333.0,69332.0,0.02795302]
[1730670172741,0.004,69333.0,69332.0,0.17575006]
[1730670172994,0.004,69333.0,69332.0,0.38126006]
[1730670175778,0.004,69333.0,69332.0,0.02795302]
[1730670176008,0.004,69333.0,69332.0,0.02995302]
[1730670176728,0.004,69333.0,69332.0,0.15976302]
[1730670176972,0.004,69333.0,69332.0,0.02995302]
[1730670177460,0.004,69333.0,69332.0,0.30556006]
[1730670177951,0.004,69333.0,69332.0,0.37926006]
[1730670178216,0.004,69333.0,69332.0,0.38126006]
[1730670180767,0.004,69333.0,69332.0,0.17575006]
[1730670182218,0.004,69333.0,69332.0,0.02995302]
[1730670182456,0.004,69333.0,69332.0,0.02795302]
[1730670182690,0.004,69333.0,69332.0,0.02995302]
[1730670183105,0.004,69333.0,69332.0,0.02695302]
[1730670183343,0.1298,69338.0,69337.0,0.002]
[1730670183572,0.00082,69339.0,69338.0,0.002]
[1730670184227,0.130617,69339.0,69338.0,0.002]
[1730670184532,0.00082,69339.0,69337.0,0.005]
[1730670184760,0.130618,69339.0,69338.0,0.002]
[1730670185202,0.130618,69339.0,69337.0,0.006]
[1730670185421,0.130618,69339.0,69338.0,0.002]
[1730670185836,0.133618,69339.0,69338.0,0.002]
[1730670186289,0.137618,69339.0,69338.0,0.002]
[1730670186515,0.129798,69338.0,69337.0,0.007]
[1730670186738,0.332978,69338.0,69337.0,0.005]
[1730670186952,0.129801,69337.0,69334.0,0.005]
[1730670187180,0.129801,69337.0,69336.0,0.005]
[1730670187599,0.129801,69337.0,69336.0,0.007]
[1730670187811,0.00382,69339.0,69338.0,0.002]
[1730670188242,0.00382,69339.0,69338.0,0.01123928]
[1730670188445,0.00082,69339.0,69338.0,0.005]
[1730670188866,0.07412926,69339.0,69338.0,0.005]
[1730670189503,0.00082,69339.0,69338.0,0.005]
[1730670189931,0.00782,69339.0,69338.0,0.01823928]
[1730670192050,0.00782,69339.0,69338.0,0.01623928]
[1730670195042,0.137617,69339.0,69338.0,0.01623928]
[1730670195258,0.137617,69339.0,69338.0,0.005]
[1730670195485,0.22389773,69339.0,69338.0,0.005]
[1730670195698,0.129804,69335.0,69334.0,0.005]
[1730670196144,0.259601,69337.0,69332.0,0.001638]
[1730670196145,0.129808,69333.0,69332.0,0.001638]
[1730670196363,0.2206699,69333.0,69332.0,0.001638]
[1730670196571,0.38663841,69333.0,69332.0,0.001638]
[1730670196998,0.3433699,69333.0,69332.0,0.001638]
[1730670197707,0.3473699,69333.0,69332.0,0.001638]
[1730670197923,0.3473699,69333.0,69326.0,0.21652989]
[1730670197924,0.2175619,69333.0,69326.0,0.21316789]
[1730670198146,0.129819,69327.0,69326.0,0.21316789]
[1730670198601,0.129827,69323.0,69322.0,0.005]
[1730670199928,0.259647,69325.0,69322.0,0.005]
[1730670200170,0.129826,69324.0,69322.0,0.005]
[1730670200597,0.130827,69323.0,69322.0,0.011]
[1730670201264,0.130827,69323.0,69322.0,0.009]
[1730670201485,0.259644,69326.0,69325.0,0.002]
[1730670201694,0.259644,69326.0,69322.0,0.015]
[1730670201914,0.129827,69323.0,69322.0,0.017]
[1730670202129,0.129827,69323.0,69322.0,0.01]
[1730670202336,0.129827,69323.0,69322.0,0.016]
[1730670202774,0.129827,69323.0,69322.0,0.018]
[1730670203403,0.129827,69323.0,69322.0,0.014642]
[1730670203874,0.129827,69323.0,69322.0,0.020642]
[1730670204080,0.129827,69323.0,69322.0,0.018642]
[1730670204999,0.1947376,69323.0,69322.0,0.018642]
[1730670206481,0.1947376,69323.0,69322.0,0.013642]
[1730670207127,0.46783464,69323.0,69322.0,0.013642]
[1730670208027,0.46783464,69323.0,69322.0,0.007642]
[1730670208255,0.46983464,69323.0,69322.0,0.007642]
[1730670208969,0.46983464,69323.0,69322.0,0.001642]
[1730670209394,0.47283464,69323.0,69322.0,0.001642]
[1730670210051,0.262127,69323.0,69322.0,0.001642]
[1730670210311,0.134827,69323.0,69322.0,0.001642]
[1730670212736,0.129827,69323.0,69322.0,0.001642]
[1730670212972,0.132827,69323.0,69322.0,0.001642]
[1730670213226,0.134827,69323.0,69322.0,0.001642]
[1730670213944,0.134827,69323.0,69322.0,0.003642]
[1730670214167,0.132827,69323.0,69322.0,0.003642]
[1730670214826,0.132827,69323.0,69322.0,0.001642]
[1730670215035,0.22426779,69323.0,69322.0,0.001642]
[1730670215260,0.22126779,69323.0,69322.0,0.001642]
[1730670215895,0.22226779,69323.0,69322.0,0.001642]
[1730670217406,0.30445457,69323.0,69322.0,0.001642]
[1730670221226,0.55025161,69323.0,69322.0,0.001642]
[1730670221455,0.67495161,69323.0,69322.0,0.001642]
[1730670221675,0.71808892,69323.0,69322.0,0.001642]
[1730670221897,0.71808892,69323.0,69312.0,0.21652989]
[1730670221898,0.129845,69313.0,69312.0,0.19265829]
[1730670222348,0.129845,69313.0,69307.0,0.0781]
[1730670222349,0.259689,69314.0,69310.0,0.005]
[1730670222574,0.129848,69312.0,69311.0,0.002]
[1730670223508,0.22583644,69312.0,69311.0,0.002]
[1730670223734,0.129849,69311.0,69310.0,0.005]
[1730670223953,0.22571891,69311.0,69310.0,0.005]
[1730670224649,0.1444107,69311.0,69300.0,0.21652989]
[1730670224879,0.1444107,69311.0,69300.0,0.22152989]
[1730670224880,0.129864,69303.0,69300.0,0.22152989]
[1730670225098,0.259725,69304.0,69300.0,0.22152989]
[1730670225328,0.259721,69305.0,69299.0,0.0781]
[1730670225547,0.259721,69305.0,69296.0,0.0495]
[1730670225548,0.25208748,69308.0,69296.0,0.0495]
[1730670225824,0.25208748,69308.0,69294.0,0.0831]
[1730670225825,0.129877,69296.0,69294.0,0.0831]
[1730670226057,0.129879,69295.0,69294.0,0.0781]
[1730670226280,0.129892,69288.0,69287.0,0.0831]
[1730670227182,0.129896,69286.0,69285.0,0.007]
[1730670227400,0.259788,69287.0,69283.0,0.005]
[1730670227635,0.129898,69285.0,69284.0,0.002]
[1730670228970,0.129898,69285.0,69284.0,0.007]
[1730670229388,0.264792,69286.0,69285.0,0.01]
[1730670229389,0.005,69286.0,69285.0,0.01]
[1730670229640,0.005,69286.0,69285.0,0.012]
[1730670229858,0.0444676,69286.0,69285.0,0.01]
[1730670230485,0.0444676,69286.0,69285.0,0.005]
[1730670230690,0.1743636,69286.0,69285.0,0.005]
[1730670230920,0.1693636,69286.0,69285.0,0.005]
[1730670231154,0.1693636,69286.0,69285.0,0.009]
[1730670231790,0.1693636,69286.0,69285.0,0.014]
[1730670232503,0.1693636,69286.0,69285.0,0.016]
[1730670232715,0.1693636,69286.0,69285.0,0.014]
[1730670234884,0.1693636,69286.0,69285.0,0.009]
[1730670236708,0.129896,69286.0,69285.0,0.009]
[1730670240379,0.129896,69286.0,69285.0,0.011]
[1730670240812,0.129896,69286.0,69285.0,0.010642]
[1730670243227,0.129896,69286.0,69285.0,0.012642]
[1730670244324,0.129896,69286.0,69285.0,0.010642]
[1730670244547,0.1948422,69286.0,69285.0,0.010642]
[1730670245632,0.1948422,69286.0,69285.0,0.012642]
[1730670246048,0.1948422,69286.0,69285.0,0.010642]
[1730670246930,0.1948422,69286.0,69285.0,0.012642]
[1730670247148,0.03256984,69294.0,69286.0,0.1306]
[1730670247369,0.129883,69293.0,69292.0,0.002]
[1730670247592,0.129883,69293.0,69286.0,0.1306]
[1730670247593,0.129886,69291.0,69290.0,0.002]
[1730670247878,0.1688509,69291.0,69290.0,0.002]
[1730670248542,0.12989,69289.0,69288.0,0.002]
[1730670248753,0.129894,69288.0,69286.0,0.1306]
[1730670250100,0.0389649,69291.0,69286.0,0.1306]
[1730670250337,0.129892,69289.0,69288.0,0.001]
[1730670250551,0.02987349,69290.0,69286.0,0.1306]
[1730670250777,0.129894,69287.0,69286.0,0.1306]
[1730670251005,0.129894,69287.0,69286.0,0.1396]
[1730670251242,0.19782595,69287.0,69286.0,0.1356]
[1730670251472,0.19782595,69287.0,69286.0,0.14415428]
[1730670251746,0.19782595,69287.0,69286.0,0.1306]
[1730670251975,0.19782595,69287.0,69286.0,0.14715428]
[1730670252220,0.19782595,69287.0,69286.0,0.1336]
[1730670252465,0.19782595,69287.0,69286.0,0.14715428]
[1730670252682,0.19782595,69287.0,69286.0,0.1356]
[1730670252891,0.19782595,69287.0,69286.0,0.14915428]
[1730670253100,0.19782595,69287.0,69286.0,0.15215428]
[1730670254185,0.19782595,69287.0,69286.0,0.14915428]
[1730670254807,0.19782595,69287.0,69286.0,0.15415428]
[1730670255647,0.19782595,69287.0,69286.0,0.15615428]
[1730670256074,0.19782595,69287.0,69286.0,0.15415428]
[1730670258352,0.19782595,69287.0,69286.0,0.02355428]
[1730670258766,0.19782595,69287.0,69286.0,0.01]
[1730670259193,0.19782595,69287.0,69286.0,0.005]
[1730670259415,0.19782595,69287.0,69285.0,0.001642]
[1730670259416,0.36435441,69287.0,69285.0,0.001642]
[1730670259645,0.32941118,69286.0,69285.0,0.001642]
[1730670259864,0.42941118,69286.0,69285.0,0.001642]
[1730670260720,0.42941118,69286.0,69285.0,0.002642]
[1730670260932,0.43841118,69286.0,69285.0,0.003642]
[1730670261152,0.43841118,69286.0,69285.0,0.002642]
[1730670262556,0.44441118,69286.0,69285.0,0.003642]
[1730670263061,0.39069304,69286.0,69285.0,0.003642]
[1730670270722,0.43383079,69286.0,69285.0,0.003642]
[1730670270986,0.39069304,69286.0,69285.0,0.003642]
[1730670273261,0.43392733,69286.0,69285.0,0.003642]
[1730670273503,0.39069304,69286.0,69285.0,0.003642]
[1730670273754,0.52755755,69286.0,69285.0,0.003642]
[1730670274011,0.59226418,69286.0,69285.0,0.003642]
[1730670274273,0.7346819,69286.0,69285.0,0.003642]
[1730670274795,0.84252628,69286.0,69285.0,0.003642]